bitfinex/quotes_ETHUSD_20251130
["timestamp","ask_amount","ask_price","bid_price","bid_amount"]
[1764529729871,3.7855561,3039.0,3038.9,0.001]
[1764529742268,0.495,3039.0,3038.9,0.001]
[1764529742431,0.495,3039.0,3038.9,0.34336852]
[1764529743161,0.495,3039.0,3038.9,0.001]
[1764529743868,0.495,3039.0,3038.9,3.42368523]
[1764529744231,3.28970172,3039.8,3038.9,3.42368523]
[1764529744232,3.2897591,3039.8,3038.9,4.47792]
[1764529744569,3.2897591,3039.8,3039.0,0.72559411]
[1764529744865,0.002,3039.4,3039.1,0.208]
[1764529747155,0.002,3039.4,3039.2,0.42241044]
[1764529747337,0.002,3039.4,3039.1,0.208]
[1764529754672,0.002,3039.4,3039.3,0.7]
[1764529790291,0.002,3039.4,3039.3,3.99720877]
[1764529790489,0.002,3039.4,3039.3,1.03561813]
[1764529790730,0.002,3039.4,3039.3,0.70697747]
[1764529790908,0.002,3039.4,3039.3,1.03561813]
[1764529791104,0.002,3039.4,3039.3,1.65034605]
[1764529791981,0.002,3039.4,3039.3,1.64336858]
[1764529792183,0.002,3039.4,3039.3,1.31472792]
[1764529796479,0.002,3039.4,3039.3,0.7]
[1764529801993,0.9209,3039.4,3039.3,0.7]
[1764529802524,0.002,3039.4,3039.3,0.7]
[1764529804486,0.002,3039.4,3039.3,3.9902313]
[1764529804690,0.002,3039.4,3039.3,4.31887196]
[1764529804890,0.002,3039.4,3039.3,5.17316275]
[1764529806107,0.002,3039.4,3039.3,1.88293145]
[1764529806315,0.002,3039.4,3039.3,1.55429079]
[1764529807714,0.002,3039.4,3039.3,5.9756202]
[1764529807898,0.002,3039.4,3039.3,6.30426086]
[1764529808098,0.002,3039.4,3039.3,6.43601728]
[1764529810219,0.002,3039.4,3039.3,7.02782868]
[1764529810517,0.002,3039.4,3039.3,6.99494467]
[1764529810821,0.002,3039.4,3039.3,7.32358533]
[1764529815927,0.0045,3039.1,3039.0,1.18291631]
[1764529816164,0.0045,3039.1,3038.0,2.95718677]
[1764529816165,3.466,3038.2,3036.8,2.36767839]
[1764529816297,1.15578286,3036.7,3035.5,0.13190241]
[1764529816634,3.42285514,3036.8,3035.0,0.175]
[1764529816635,0.72559411,3035.9,3035.0,0.175]
[1764529816931,2.95131588,3035.3,3034.5,0.4709]
[1764529817135,7.55469737,3035.7,3034.5,0.4709]
[1764529817136,2.36104667,3034.9,3034.5,0.4709]
[1764529817449,2.46910008,3034.8,3034.6,1.18]
[1764529817733,2.64940008,3034.7,3034.6,1.18]
[1764529817893,5.94461871,3034.7,3034.6,1.18]
[1764529818428,4.18383444,3034.7,3034.6,1.18]
[1764529820995,5.21491511,3034.7,3034.6,1.18]
[1764529821190,7.57596178,3034.7,3034.6,1.18]
[1764529821406,8.51013374,3034.7,3034.0,0.8549]
[1764529821695,1.74227803,3034.2,3034.0,0.8549]
[1764529821898,1.74227803,3034.2,3034.1,0.481]
[1764529822239,1.55181118,3034.2,3034.1,0.481]
[1764529822421,3.29408921,3034.2,3034.1,0.481]
[1764529822725,3.29121343,3034.2,3034.1,0.481]
[1764529822895,1.55181118,3034.2,3034.1,0.481]
[1764529823095,3.29121386,3034.2,3034.1,0.481]
[1764529823303,0.69691118,3034.2,3034.1,0.972]
[1764529823505,1.85513656,3034.2,3034.1,4.26787027]
[1764529823703,1.06560641,3034.2,3034.1,4.99346438]
[1764529823909,1.15822538,3034.5,3034.2,0.72559411]
[1764529824108,3.29454957,3035.4,3034.2,0.72559411]
[1764529824109,1.15822538,3035.0,3034.4,0.72559411]
[1764529824327,1.15822538,3034.9,3034.5,0.209]
[1764529824541,1.15822538,3034.9,3034.5,0.7]
[1764529824697,1.15822538,3034.9,3034.8,0.4992]
[1764529824903,1.15822538,3035.0,3034.8,0.4992]
[1764529825110,1.15822538,3035.0,3034.8,0.491]
[1764529825312,1.15822538,3035.0,3034.9,0.4992]
[1764529825498,1.73712369,3035.1,3034.5,0.7]
[1764529825709,1.15675138,3034.9,3034.5,0.7]
[1764529826232,1.15675138,3035.0,3034.8,0.4992]
[1764529826534,1.15675138,3034.9,3034.8,0.4992]
[1764529827403,1.73712369,3035.0,3034.8,0.4992]
[1764529828404,0.002,3034.9,3034.8,0.4992]
[1764529828605,0.002,3034.9,3034.6,0.491]
[1764529828817,1.15541143,3034.8,3034.6,0.491]
[1764529829234,1.15741143,3034.9,3034.7,0.4992]
[1764529829441,1.15541143,3034.8,3034.6,0.491]
[1764529829932,1.15541143,3034.8,3034.7,0.4992]
[1764529830133,1.15741143,3034.9,3034.7,0.4992]
[1764529830348,0.002,3034.9,3034.8,0.9902]
[1764529830548,0.002,3034.9,3034.6,3.29531327]
[1764529830713,0.002,3034.9,3034.6,0.72559411]
[1764529832231,1.73561508,3034.9,3034.8,1.13109811]
[1764529832432,1.73561508,3034.9,3034.8,5.57040429]
[1764529832433,0.002,3034.9,3034.8,5.57040429]
[1764529832614,0.002,3034.9,3034.8,3.59784211]
[1764529833539,0.002,3034.9,3034.8,4.34004811]
[1764529833719,0.002,3034.9,3034.8,3.46350011]
[1764529834136,0.002,3034.9,3034.8,6.75861016]
[1764529834640,0.002,3034.9,3034.8,10.75960316]
[1764529834820,0.002,3034.9,3034.8,7.59421616]
[1764529835611,0.002,3034.9,3034.8,11.03494116]
[1764529836744,0.002,3034.9,3034.8,16.91431616]
[1764529837741,0.002,3034.9,3034.8,17.54792916]
[1764529837948,0.002,3034.9,3034.8,13.98080616]
[1764529838315,0.002,3034.9,3034.8,17.83080616]
[1764529838624,0.002,3034.9,3034.8,18.93866316]
[1764529839143,0.002,3034.9,3034.8,18.35160216]
[1764529839738,0.002,3034.9,3034.8,18.76060216]
[1764529840345,0.002,3034.9,3034.8,18.42267916]
[1764529840980,0.002,3034.9,3034.8,22.86817016]
[1764529841342,0.002,3034.9,3034.8,21.09926716]
[1764529841861,0.002,3034.9,3034.8,8.27620816]
[1764529842158,0.002,3034.9,3034.8,21.10686716]
[1764529842962,0.002,3034.9,3034.8,20.39056716]
[1764529843135,0.002,3034.9,3034.8,20.71625916]
[1764529843735,0.002,3034.9,3034.8,20.36401116]
[1764529844141,0.002,3034.9,3034.8,21.37851116]
[1764529844466,0.002,3034.9,3034.8,21.05776216]
[1764529845266,0.70695524,3034.9,3034.8,11.34070216]
[1764529845942,0.70695524,3034.9,3034.8,11.66934282]
[1764529846139,0.70695524,3034.9,3034.8,22.06365782]
[1764529846339,0.70695524,3034.9,3034.8,25.49439182]
[1764529846340,0.002,3034.9,3034.8,25.49439182]
[1764529846536,0.002,3034.9,3034.8,24.97689182]
[1764529846877,0.002,3034.9,3034.8,24.97789182]
[1764529847178,0.002,3034.9,3034.8,27.89964282]
[1764529848180,0.002,3034.9,3034.8,27.44218982]
[1764529848482,0.002,3034.9,3034.8,28.06949782]
[1764529849356,0.002,3034.9,3034.8,28.05988482]
[1764529849561,0.002,3034.9,3034.8,31.49061882]
[1764529850483,0.002,3034.9,3034.8,33.47125882]
[1764529850683,0.002,3034.9,3034.8,31.83325182]
[1764529850848,0.002,3034.9,3034.8,24.67158382]
[1764529851055,0.002,3034.9,3034.8,22.97515282]
[1764529851252,0.002,3034.9,3034.8,27.56835582]
[1764529851454,0.002,3034.9,3034.8,26.82935582]
[1764529852469,0.002,3034.9,3034.8,29.12386882]
[1764529853489,0.002,3034.9,3034.8,12.03658282]
[1764529853652,0.002,3034.9,3034.8,29.12386882]
[1764529854392,0.002,3034.9,3034.8,25.69313482]
[1764529856588,0.002,3034.9,3034.8,8.60584882]
[1764529856768,0.002,3034.9,3034.8,25.69667182]
[1764529857980,0.002,3034.9,3034.8,25.83402882]
[1764529858455,0.002,3034.9,3034.8,24.19620382]
[1764529858889,0.002,3034.9,3034.8,8.60584882]
[1764529859062,0.002,3034.9,3034.8,23.98360582]
[1764529860064,0.002,3034.9,3034.8,26.27411482]
[1764529860266,0.002,3034.9,3034.8,25.86511482]
[1764529860475,1.1457,3034.9,3034.8,3.29611005]
[1764529860799,1.85465472,3034.9,3034.8,3.50511005]
[1764529860991,1.85465472,3034.9,3034.8,4.63620816]
[1764529862367,1.1457,3034.9,3034.8,4.63620816]
[1764529866814,1.1457,3034.9,3034.8,4.96484882]
[1764529876610,1.1457,3034.9,3034.8,4.63620816]
[1764529879982,1.1457,3034.9,3034.8,4.96484882]
[1764529885831,0.4822,3034.9,3034.8,4.63620816]
[1764529885991,0.002,3034.9,3034.8,4.96484882]
[1764529888820,0.002,3034.9,3034.8,8.81484882]
[1764529890399,0.002,3034.9,3034.8,8.48620816]
[1764529890599,0.002,3034.9,3034.8,8.81484882]
[1764529893094,0.002,3034.9,3034.8,8.48620816]
[1764529893728,0.002,3034.9,3034.8,8.81484882]
[1764529893899,0.002,3034.9,3034.8,8.48620816]
[1764529894704,0.002,3034.9,3034.8,8.81484882]
[1764529894904,0.002,3034.9,3034.8,8.48620816]
[1764529895424,0.002,3034.9,3034.8,8.81484882]
[1764529896121,0.002,3034.9,3034.8,8.48620816]
[1764529897524,0.002,3034.9,3034.8,8.81484882]
[1764529898311,0.002,3034.9,3034.8,8.48620816]
[1764529904737,0.4665,3034.9,3034.8,8.48620816]
[1764529904938,0.9285,3034.9,3034.8,8.48620816]
[1764529907343,0.4665,3034.9,3034.8,8.48620816]
[1764529907841,0.002,3034.9,3034.8,8.48620816]
[1764529908138,0.9285,3034.9,3034.8,8.81484882]
[1764529908510,0.9285,3034.9,3034.8,4.96484882]
[1764529917928,0.9285,3034.9,3034.8,4.63620816]
[1764529918253,0.002,3034.9,3034.8,4.96484882]
[1764529920890,0.002,3034.9,3034.8,29.93934682]
[1764529921179,0.002,3034.9,3034.8,30.729679]
[1764529921838,0.002,3034.9,3034.8,39.204717]
[1764529922747,0.002,3034.9,3034.8,39.512785]
[1764529923360,0.002,3034.9,3034.8,39.219262]
[1764529924285,0.002,3034.9,3034.8,38.711215]
[1764529924947,0.002,3034.9,3034.8,31.999903]
[1764529926085,0.002,3034.9,3034.8,39.605181]
[1764529926374,0.002,3034.9,3034.8,20.875233]
[1764529926543,0.002,3034.9,3034.8,20.55370082]
[1764529926969,0.002,3034.9,3034.8,20.85901782]
[1764529928170,0.002,3034.9,3034.8,24.09822682]
[1764529928959,0.002,3034.9,3034.8,9.28364882]
[1764529929157,0.002,3034.9,3034.8,24.45645382]
[1764529929568,0.002,3034.9,3034.8,24.18842782]
[1764529930047,0.002,3034.9,3034.8,26.30525782]
[1764529930648,0.002,3034.9,3034.8,22.08767082]
[1764529931077,0.002,3034.9,3034.8,30.67806782]
[1764529931264,0.002,3034.9,3034.8,28.85975665]
[1764529931850,0.002,3034.9,3034.8,10.07286265]
[1764529932176,0.002,3034.9,3034.8,38.06141865]
[1764529934157,0.002,3034.9,3034.8,40.07286265]
[1764529935165,0.002,3034.9,3034.8,39.605181]
[1764529936951,0.002,3034.9,3034.8,35.755181]
[1764529937154,0.002,3034.9,3034.8,5.755181]
[1764529937354,0.002,3034.9,3034.8,35.754181]
[1764529937955,0.002,3035.3,3034.9,1.13109811]
[1764529938157,0.002,3035.3,3035.2,26.85160888]
[1764529938356,0.002,3035.3,3035.2,27.05960888]
[1764529938557,0.002,3035.3,3035.2,27.52840888]
[1764529939287,0.002,3035.3,3035.2,8.86343568]
[1764529939588,0.002,3035.3,3035.2,30.82769868]
[1764529940396,0.002,3035.3,3035.2,31.12443693]
[1764529941183,0.002,3035.3,3035.2,30.89707193]
[1764529941378,0.002,3035.3,3035.2,27.18286493]
[1764529941697,0.002,3035.3,3035.2,14.74533193]
[1764529941870,0.4651,3035.3,3035.2,14.74533193]
[1764529942187,0.9339,3035.3,3035.2,14.74533193]
[1764529942387,0.9339,3035.3,3035.2,8.86066493]
[1764529942589,0.9339,3035.3,3035.2,18.22850093]
[1764529943388,0.9339,3035.3,3035.2,14.70369393]
[1764529944387,0.9339,3035.3,3035.2,17.83704493]
[1764529944590,0.9339,3035.3,3035.2,17.57862693]
[1764529945587,0.9339,3035.3,3035.2,17.81450593]
[1764529945782,0.9339,3035.3,3035.2,17.57862693]
[1764529946292,0.9339,3035.3,3035.2,16.06115493]
[1764529947174,0.9339,3035.3,3035.2,15.06115493]
[1764529947367,0.9339,3035.3,3035.2,14.77862693]
[1764529947569,0.9339,3035.3,3035.2,17.01756393]
[1764529947767,0.9339,3035.3,3035.2,15.97862693]
[1764529948567,0.9339,3035.3,3035.2,8.86066493]
[1764529948766,0.9339,3035.3,3035.2,16.22998193]
[1764529949198,0.9339,3035.3,3035.2,14.74210193]
[1764529949605,0.9339,3035.3,3035.2,8.86066493]
[1764529949896,0.9339,3035.3,3035.2,16.62939293]
[1764529950196,0.4651,3035.3,3035.2,15.78738993]
[1764529950577,0.9595,3035.3,3035.2,8.86066493]
[1764529950778,0.9595,3035.3,3035.2,17.34041193]
[1764529951572,0.002,3035.3,3035.2,17.34041193]
[1764529951772,0.002,3035.3,3035.2,19.84669493]
[1764529952015,0.002,3035.3,3035.2,15.65025993]
[1764529952780,0.002,3035.3,3035.2,15.76655693]
[1764529953771,0.002,3035.3,3035.2,8.86066493]
[1764529953971,0.002,3035.3,3035.2,16.42668793]
[1764529954201,0.002,3036.0,3035.2,16.42668793]
[1764529954433,0.4651,3037.0,3035.2,16.42668793]
[1764529954434,0.18,3037.3,3036.9,0.405504]
[1764529954707,0.4944,3037.2,3037.1,0.73414466]
[1764529955208,0.9917,3037.2,3037.1,0.405504]
[1764529955374,0.9917,3037.2,3037.1,0.899904]
[1764529956104,0.9917,3037.2,3037.1,4.91811277]
[1764529960600,0.9917,3037.2,3037.1,5.24675343]
[1764529961192,0.9917,3037.2,3037.1,4.91811277]
[1764529963797,0.9937,3037.2,3037.1,4.91811277]
[1764529980631,0.9937,3037.2,3037.1,0.72559411]
[1764529980925,0.9937,3037.2,3037.0,0.208]
[1764529981128,0.9656,3037.1,3037.0,0.208]
[1764529981697,0.9656,3037.1,3037.0,4.22631719]
[1764529988010,0.9656,3037.1,3037.0,4.19236719]
[1764530000151,0.9656,3037.1,3037.0,4.19336719]
[1764530000549,0.9676,3037.1,3037.0,4.19336719]
[1764530021348,0.4919,3037.1,3037.0,4.19336719]
[1764530023786,0.9438,3037.1,3037.0,4.19336719]
[1764530046718,0.458,3037.1,3037.0,4.19336719]
[1764530047012,0.9527,3037.1,3037.0,4.19336719]
[1764530051485,0.002,3037.1,3037.0,4.19336719]
[1764530054089,0.002,3037.1,3037.0,4.59887119]
[1764530054416,0.9527,3037.1,3037.0,4.59887119]
[1764530056323,0.9527,3037.1,3037.0,4.19336719]
[1764530056529,0.9527,3037.1,3037.0,0.17505]
[1764530064426,0.458,3037.1,3037.0,3.46777308]
[1764530064628,0.002,3037.1,3037.0,3.46777308]
[1764530066633,0.928,3037.1,3037.0,3.46777308]
[1764530069412,0.4673,3037.1,3037.0,3.46777308]
[1764530069610,0.002,3037.1,3037.0,3.46777308]
[1764530070316,0.928,3037.1,3037.0,3.46777308]
[1764530073550,0.002,3037.1,3037.0,3.46777308]
[1764530075523,0.4673,3037.1,3037.0,3.46777308]
[1764530076076,0.928,3037.1,3037.0,0.17505]
[1764530077250,0.928,3037.1,3037.0,3.46777308]
[1764530079751,0.928,3037.1,3037.0,0.17505]
[1764530081960,0.928,3037.1,3037.0,3.46777308]
[1764530087063,0.4673,3037.1,3037.0,3.46777308]
[1764530088965,0.928,3037.1,3037.0,3.46777308]
[1764530097980,0.002,3037.1,3037.0,3.46777308]
[1764530098270,0.4665,3037.1,3037.0,3.46777308]
[1764530098464,0.9229,3037.1,3037.0,3.46777308]
[1764530099077,0.002,3037.1,3037.0,3.46777308]
[1764530101278,0.9229,3037.1,3037.0,3.46777308]
[1764530101779,0.002,3037.1,3037.0,7.63026639]
[1764530101971,0.9229,3037.1,3037.0,3.29372308]
[1764530102166,0.9229,3037.1,3037.0,4.42462308]
[1764530102377,0.002,3037.1,3037.0,3.50172308]
[1764530102579,0.002,3037.1,3037.0,4.75326374]
[1764530102889,0.002,3037.1,3037.0,5.15876774]
[1764530103585,0.002,3037.1,3037.0,5.88436185]
[1764530106595,0.002,3037.1,3037.0,5.55572119]
[1764530114093,0.002,3037.1,3037.0,5.88436185]
[1764530115098,0.002,3037.1,3037.0,6.30539971]
[1764530115300,0.002,3037.1,3037.0,5.88436185]
[1764530123813,0.946,3037.1,3037.0,5.88436185]
[1764530124106,0.946,3037.1,3037.0,1.1319]
[1764530124307,0.946,3037.1,3037.0,0.209]
[1764530138321,0.946,3037.1,3037.0,3.50172308]
[1764530146637,0.946,3037.1,3037.0,0.209]
[1764530147031,1.1354,3037.1,3037.0,0.209]
[1764530155417,0.002,3037.1,3037.0,0.209]
[1764530157320,0.002,3037.1,3037.0,3.50172308]
[1764530157520,0.002,3037.1,3037.0,3.83036374]
[1764530158961,0.002,3037.1,3037.0,3.50172308]
[1764530163548,0.002,3037.1,3037.0,3.46777308]
[1764530166939,0.002,3037.1,3037.0,3.79641374]
[1764530167533,0.002,3037.1,3037.0,4.20191774]
[1764530167734,0.002,3037.1,3037.0,4.59887119]
[1764530167935,0.002,3037.1,3037.0,5.05936034]
[1764530170374,0.002,3037.1,3037.0,5.06036034]
[1764530172049,0.002,3037.1,3037.0,28.97809134]
[1764530172376,0.002,3037.1,3037.0,24.16709134]
[1764530173071,0.002,3037.1,3037.0,26.85230434]
[1764530173772,0.002,3037.1,3037.0,24.96426134]
[1764530173971,0.002,3037.1,3037.0,23.96026134]
[1764530174271,0.002,3037.1,3037.0,8.75316234]
[1764530174479,0.002,3037.1,3037.0,12.1799939]
[1764530175378,0.002,3037.1,3037.0,27.9387359]
[1764530175673,0.002,3037.1,3037.0,22.9967359]
[1764530176382,0.002,3037.1,3037.0,25.9912839]
[1764530177173,0.002,3037.1,3037.0,21.0463969]
[1764530177864,0.002,3037.1,3037.0,17.7593969]
[1764530178171,0.002,3037.1,3037.0,10.7884849]
[1764530178372,0.002,3037.1,3037.0,10.5828299]
[1764530178737,0.002,3037.1,3037.0,8.4871919]
[1764530178938,0.002,3037.1,3037.0,10.6105859]
[1764530179169,0.002,3037.1,3037.0,8.4871919]
[1764530179385,0.002,3037.1,3037.0,11.7113409]
[1764530180378,0.002,3037.1,3037.0,12.2875599]
[1764530180969,0.002,3037.1,3037.0,11.9798049]
[1764530181343,0.002,3037.1,3037.0,8.4871919]
[1764530181671,0.002,3037.1,3037.0,12.3290469]
[1764530182468,0.002,3037.1,3037.0,8.4871919]
[1764530182773,0.002,3037.1,3037.0,20.5165309]
[1764530183068,0.002,3037.1,3037.0,16.58600868]
[1764530183271,0.002,3037.1,3037.0,16.15286524]
[1764530183473,0.002,3037.1,3037.0,17.8318929]
[1764530184377,0.002,3037.1,3037.0,17.83052807]
[1764530184576,0.002,3037.1,3037.0,17.68352807]
[1764530185452,0.002,3037.1,3037.0,17.46382807]
[1764530185650,0.002,3037.1,3037.0,16.66282807]
[1764530186052,0.002,3037.1,3037.0,8.51877707]
[1764530189181,0.002,3037.1,3037.0,12.74923207]
[1764530189478,0.002,3037.1,3037.0,11.70240107]
[1764530190183,0.002,3037.1,3037.0,19.43748707]
[1764530190383,0.002,3037.1,3037.0,17.63748707]
[1764530191278,0.002,3037.1,3037.0,8.51877707]
[1764530191488,0.002,3037.1,3037.0,17.63748707]
[1764530192284,0.002,3037.1,3037.0,8.51877707]
[1764530192488,0.002,3037.1,3037.0,18.71870999]
[1764530193261,0.002,3037.1,3037.0,18.40225899]
[1764530193462,0.002,3037.1,3037.0,18.70730999]
[1764530194387,0.002,3037.1,3037.0,18.23756299]
[1764530195690,0.002,3037.1,3037.0,19.94561599]
[1764530196497,0.002,3037.1,3037.0,18.45708307]
[1764530196791,0.002,3037.1,3037.0,17.21958307]
[1764530197592,0.002,3037.1,3037.0,17.73708307]
[1764530198095,0.002,3037.1,3037.0,17.21958307]
[1764530198592,0.002,3037.1,3037.0,18.04927807]
[1764530200068,0.002,3037.1,3037.0,17.73708307]
[1764530200398,0.002,3037.1,3037.0,19.51496064]
[1764530201796,0.002,3037.1,3037.0,20.50036064]
[1764530202700,0.002,3037.1,3037.0,20.80572164]
[1764530203767,0.002,3037.1,3037.0,20.82974264]
[1764530204305,0.002,3037.1,3037.0,20.31224264]
[1764530204693,0.002,3037.1,3037.0,13.18559864]
[1764530204904,0.002,3037.1,3037.0,10.29665464]
[1764530205200,0.002,3037.1,3037.0,9.96801398]
[1764530205400,0.002,3037.1,3037.0,14.02479464]
[1764530205792,0.002,3037.1,3037.0,19.89661664]
[1764530208524,0.002,3037.1,3037.0,16.09492664]
[1764530208930,0.002,3037.1,3037.0,16.41120364]
[1764530209829,0.002,3037.1,3037.0,10.29665464]
[1764530209979,0.002,3037.1,3037.0,13.47265964]
[1764530211008,0.002,3037.1,3037.0,13.79665264]
[1764530212075,0.002,3037.1,3037.0,14.05627564]
[1764530213108,0.002,3037.1,3037.0,22.10420164]
[1764530213409,0.002,3037.1,3037.0,17.16220164]
[1764530214102,0.002,3037.1,3037.0,10.29665464]
[1764530214281,0.002,3037.1,3037.0,17.15890764]
[1764530214481,0.002,3037.1,3037.0,16.79899764]
[1764530215110,0.002,3037.1,3037.0,17.00779764]
[1764530216508,0.002,3037.1,3037.0,16.68834764]
[1764530218084,0.002,3037.1,3037.0,13.47265964]
[1764530218511,0.002,3037.1,3037.0,13.59193764]
[1764530218918,0.002,3037.1,3037.0,12.98747164]
[1764530219218,0.9706,3037.1,3037.0,12.93990664]
[1764530219409,0.9706,3037.1,3037.0,8.51877707]
[1764530220216,0.9706,3037.1,3037.0,8.19013641]
[1764530220409,0.9706,3037.1,3037.0,8.51877707]
[1764530222545,0.9706,3037.1,3037.0,4.35916568]
[1764530222832,0.9706,3037.1,3037.0,5.09331034]
[1764530247791,0.9706,3037.1,3037.0,4.76466968]
[1764530248087,0.9706,3037.1,3037.0,5.09331034]
[1764530258288,0.002,3037.1,3037.0,5.09331034]
[1764530258722,0.002,3037.1,3037.0,5.10928018]
[1764530259419,0.002,3037.1,3037.0,4.78063952]
[1764530259624,0.002,3037.1,3037.0,5.10928018]
[1764530269346,0.002,3037.1,3037.0,15.69049451]
[1764530269644,0.002,3037.1,3037.0,16.00316533]
[1764530270356,0.002,3037.1,3037.0,15.33192133]
[1764530271214,0.002,3037.1,3037.0,14.14762234]
[1764530271639,0.002,3037.1,3037.0,15.33192133]
[1764530272074,0.002,3037.1,3037.0,14.14762234]
[1764530274088,0.002,3037.1,3037.0,15.33192133]
[1764530274944,0.002,3037.1,3037.0,19.18192133]
[1764530278574,0.002,3037.1,3037.0,10.12760933]
[1764530278767,0.002,3037.1,3037.0,40.12760933]
[1764530280392,0.002,3037.1,3037.0,39.79896867]
[1764530280590,0.002,3037.1,3037.0,40.12760933]
[1764530280766,0.002,3037.1,3037.0,38.94331034]
[1764530284827,0.4967,3037.1,3037.0,38.40195334]
[1764530285096,0.9866,3037.1,3037.0,17.44129534]
[1764530285473,0.9866,3037.1,3037.0,15.58741534]
[1764530285673,0.9866,3037.1,3037.0,14.91822934]
[1764530292407,0.002,3037.1,3037.0,8.94331034]
[1764530292708,0.002,3037.1,3037.0,38.94331034]
[1764530293102,0.002,3037.1,3037.0,38.54975334]
[1764530298104,0.002,3037.1,3037.0,40.32763091]
[1764530305527,0.002,3037.1,3037.0,10.72118791]
[1764530305699,0.002,3037.1,3037.0,40.72118791]
[1764530306512,0.002,3037.1,3037.0,44.14641549]
[1764530315842,0.9451,3037.1,3037.0,7.68107557]
[1764530316045,0.9451,3037.1,3037.0,3.42557157]
[1764530316224,0.9451,3037.1,3037.0,4.76466968]
[1764530316421,0.9451,3037.1,3037.0,4.35916568]
[1764530316656,0.9451,3037.1,3036.6,0.001]
[1764530316854,0.5541,3036.7,3036.6,0.001]
[1764530317151,0.5541,3036.7,3036.6,0.209]
[1764530317356,0.5541,3036.7,3036.5,0.001]
[1764530317357,1.0419,3036.7,3036.5,0.001]
[1764530317531,0.4553,3036.6,3036.5,0.001]
[1764530317731,0.9431,3036.6,3036.5,0.001]
[1764530318333,1.17696137,3036.6,3036.5,0.001]
[1764530322050,0.9431,3036.6,3036.5,0.001]
[1764530323033,0.9431,3036.6,3036.5,0.32964066]
[1764530325200,0.9431,3036.6,3036.5,3.62290593]
[1764530325755,0.9431,3036.6,3036.5,4.56600593]
[1764530332001,0.4553,3036.6,3036.5,4.56600593]
[1764530332298,0.9431,3036.6,3036.5,4.97150993]
[1764530335390,0.4553,3036.6,3036.5,4.97150993]
[1764530335720,0.0988,3036.7,3036.6,0.32864066]
[1764530335935,0.5987,3036.7,3036.6,0.32864066]
[1764530336312,1.0583,3036.7,3036.6,0.32864066]
[1764530336777,1.0583,3036.7,3036.6,7.64572506]
[1764530337832,1.0583,3036.7,3036.6,4.22049748]
[1764530338606,1.0583,3036.7,3036.6,7.64572506]
[1764530339586,0.4596,3036.7,3036.6,8.77682317]
[1764530339976,0.9595,3036.7,3036.6,8.77682317]
[1764530340177,0.4596,3036.7,3036.6,8.77682317]
[1764530340378,0.4999,3036.9,3036.8,0.32864066]
[1764530340588,0.4999,3036.9,3036.8,0.53664066]
[1764530340787,0.9595,3036.9,3036.8,0.53664066]
[1764530341188,0.9595,3036.9,3036.8,1.03654066]
[1764530342305,0.9595,3036.9,3036.8,4.32948059]
[1764530345807,0.1008,3037.0,3036.9,0.32864066]
[1764530345981,0.6007,3037.0,3036.9,0.32864066]
[1764530346307,1.0603,3037.0,3036.8,4.00083993]
[1764530346652,0.4596,3036.9,3036.8,4.00083993]
[1764530346978,0.9595,3036.9,3036.8,4.00083993]
[1764530350311,0.9595,3036.9,3036.8,0.7079]
[1764530350711,0.9595,3036.9,3036.8,4.00083993]
[1764530352117,0.9595,3036.9,3036.8,0.4999]
[1764530352325,5.98297186,3036.9,3036.5,0.001]
[1764530352486,0.4596,3036.6,3036.5,0.001]
[1764530352815,1.16959467,3036.6,3036.5,0.001]
[1764530353009,1.80139838,3036.6,3036.5,0.001]
[1764530354300,1.09140371,3036.6,3036.5,0.001]
[1764530354504,1.80139838,3036.6,3036.5,0.001]
[1764530354704,2.04237594,3036.6,3036.5,0.001]
[1764530362225,1.33238127,3036.6,3036.5,0.001]
[1764530364924,4.62553809,3036.6,3036.5,0.001]
[1764530366632,4.49363438,3036.6,3036.5,0.001]
[1764530367126,1.20047756,3036.6,3036.5,0.001]
[1764530370005,4.49363438,3036.6,3036.5,0.001]
[1764530370531,5.20294327,3036.6,3036.5,0.001]
[1764530371433,5.53194327,3036.6,3036.5,0.001]
[1764530371680,6.25753738,3036.6,3036.5,0.001]
[1764530372004,7.99115246,3036.6,3036.5,0.001]
[1764530372210,8.43677825,3036.6,3036.5,0.001]
[1764530372633,0.734504,3036.4,3036.2,0.001]
[1764530372835,6.05514009,3036.4,3036.2,0.001]
[1764530373047,6.52494009,3036.4,3036.2,0.001]
[1764530373237,9.81831382,3036.4,3036.2,0.001]
[1764530375741,9.91831382,3036.4,3036.2,0.001]
[1764530375942,11.83472693,3036.4,3036.2,0.001]
[1764530376246,11.73472693,3036.4,3036.2,0.001]
[1764530377275,13.50158449,3036.4,3036.2,0.001]
[1764530377429,13.63355043,3036.4,3036.2,0.001]
[1764530377629,13.73355043,3036.4,3036.2,0.001]
[1764530378724,13.63355043,3036.4,3036.2,0.001]
[1764530382742,13.84155043,3036.4,3036.2,0.001]
[1764530384530,13.63355043,3036.4,3036.2,0.001]
[1764530384733,13.84155043,3036.4,3036.2,0.001]
[1764530386470,13.63355043,3036.4,3036.2,0.001]
[1764530386682,13.84155043,3036.4,3036.2,0.001]
[1764530391280,12.07469287,3036.4,3036.2,0.001]
[1764530393275,13.83978784,3036.4,3036.2,0.001]
[1764530393979,17.30878784,3036.4,3036.2,0.001]
[1764530394179,12.07248253,3036.4,3036.2,0.001]
[1764530397763,11.45897853,3036.4,3036.2,0.001]
[1764530397969,11.66697853,3036.4,3036.2,0.001]
[1764530399263,1.05459411,3036.3,3036.2,0.001]
[1764530399462,4.37428537,3036.3,3036.2,0.001]
[1764530399872,7.40976756,3036.3,3036.2,0.001]